fUSD/lending_fUSD_20240526
["ID","MTS","AMOUNT","RATE_DAILY","PERIOD"]
[327947600,1716693054540,-500.0,0.0003178,5]
[327947601,1716693054550,-500.0,0.0003178,5]
[327947602,1716693054559,-500.0,0.0003178,5]
[327947603,1716693054569,-500.0,0.0003178,5]
[327947604,1716693054579,-500.0,0.0003178,5]
[327947605,1716693054588,-500.0,0.0003178,5]
[327947606,1716693054598,-500.0,0.0003178,5]
[327947607,1716693054609,-500.0,0.0003178,5]
[327947608,1716693054619,-500.0,0.0003178,5]
[327947609,1716693054629,-528.01320624,0.0003178,5]
[327947610,1716693054638,-500.0,0.0003178,5]
[327947611,1716693054648,-500.0,0.0003178,5]
[327947612,1716693054658,-500.0,0.0003178,5]
[327947613,1716693054667,-500.0,0.0003178,5]
[327947614,1716693054677,-500.0,0.0003178,5]
[327947615,1716693054687,-500.0,0.0003178,5]
[327947616,1716693054696,-500.0,0.0003178,5]
[327947617,1716693054706,-500.0,0.0003178,5]
[327947618,1716693054716,-649.79,0.0003178,5]
[327947619,1716693054726,-1193.45,0.0003178,5]
[327947620,1716693054735,-623.75458749,0.0003178,5]
[327947621,1716693054745,-500.0,0.0003178,5]
[327947622,1716693054755,-1224.71,0.0003178,5]
[327947623,1716693054765,-500.0,0.0003178,5]
[327947624,1716693054774,-500.0,0.0003178,5]
[327947625,1716693054784,-500.0,0.0003178,5]
[327947626,1716693054794,-500.0,0.0003178,5]
[327947627,1716693054804,-500.0,0.0003178,5]
[327947628,1716693054814,-500.0,0.0003178,5]
[327947629,1716693054824,-500.0,0.0003178,5]
[327947630,1716693054834,-500.0,0.0003178,5]
[327947631,1716693054844,-500.0,0.0003178,5]
[327947632,1716693054854,-500.0,0.0003178,5]
[327947633,1716693054865,-500.0,0.0003178,5]
[327947634,1716693054875,-500.0,0.0003178,5]
[327947635,1716693054886,-500.0,0.0003178,5]
[327947636,1716693054896,-347.27579125,0.0003178,5]
[327947637,1716693054907,-538.74,0.0003178,5]
[327947638,1716693054917,-500.0,0.0003178,5]
[327947639,1716693054926,-561.76,0.0003178,5]
[327947640,1716693054936,-500.0,0.0003178,5]
[327947641,1716693054946,-500.0,0.0003178,5]
[327947642,1716693054956,-570.41,0.0003178,5]
[327947643,1716693054966,-500.0,0.0003178,5]
[327947644,1716693054976,-922.46,0.0003178,5]
[327947645,1716693054986,-500.0,0.0003178,5]
[327947646,1716693054996,-543.24,0.0003178,5]
[327947647,1716693055006,-176.02169007,0.0003178,5]
[327947648,1716693055016,-500.0,0.0003178,5]
[327947649,1716693055026,-500.0,0.0003178,5]
[327947650,1716693055037,-588.84,0.0003178,5]
[327947651,1716693055046,-574.27,0.0003178,5]
[327947652,1716693055056,-500.0,0.0003178,5]
[327947653,1716693055066,-500.0,0.0003178,5]
[327947654,1716693055076,-176.692956,0.0003178,7]
[327947655,1716693055088,-1075.77,0.0003178,5]
[327947656,1716693055100,-176.692956,0.0003178,7]
[327947657,1716693055110,-500.0,0.0003178,5]
[327947658,1716693055119,-500.0,0.0003178,5]
[327947659,1716693055131,-684.63,0.0003178,5]
[327947660,1716693055141,-176.692956,0.0003178,7]
[327947661,1716693055151,-176.692956,0.0003178,7]
[327947662,1716693055161,-500.0,0.0003178,5]
[327947663,1716693055173,-500.0,0.0003178,5]
[327947664,1716693055183,-151.0,0.0003178,7]
[327947665,1716693055193,-500.0,0.0003178,5]
[327947666,1716693055203,-500.0,0.0003178,5]
[327947667,1716693055213,-500.0,0.0003178,2]
[327947668,1716693055223,-151.0,0.0003178,7]
[327947669,1716693055233,-151.0,0.0003178,7]
[327947670,1716693055243,-554.19,0.0003178,5]
[327947671,1716693055253,-742.2,0.0003178,5]
[327947672,1716693055264,-500.0,0.0003178,5]
[327947673,1716693055274,-568.24,0.0003178,5]
[327947674,1716693055283,-500.0,0.0003178,5]
[327947675,1716693055293,-500.0,0.0003178,5]
[327947676,1716693055303,-500.0,0.0003178,5]
[327947677,1716693055313,-500.0,0.0003178,5]
[327947678,1716693055323,-500.0,0.0003178,5]
[327947679,1716693055332,-730.54,0.0003178,5]
[327947680,1716693055342,-500.0,0.0003178,5]
[327947681,1716693055352,-10293.52576004,0.0003178,2]
[327947682,1716693055362,-524.07797883,0.0003178,5]
[327947683,1716693055372,-278.27940189,0.0003178,5]
[327947684,1716693055382,-500.0,0.0003178,5]
[327947685,1716693055392,-1012.36,0.0003178,5]
[327947686,1716693055402,-500.0,0.0003178,5]
[327947687,1716693055413,-500.0,0.0003178,5]
[327947688,1716693055422,-543.72568959,0.0003178,5]
[327947689,1716693055433,-549.38,0.0003178,5]
[327947690,1716693055443,-500.0,0.0003178,5]
[327947691,1716693055453,-817.34,0.0003178,5]
[327947692,1716693055463,-500.0,0.0003178,5]
[327947693,1716693055473,-500.0,0.0003178,5]
[327947694,1716693055483,-500.0,0.0003178,5]
[327947695,1716693055493,-500.0,0.0003178,5]
[327947696,1716693055502,-989.25,0.0003178,5]
[327947697,1716693055512,-880.05,0.0003178,5]
[327947698,1716693055522,-500.0,0.0003178,5]
[327947699,1716693055532,-500.0,0.0003178,5]
[327947700,1716693055543,-974.1,0.0003178,5]
[327947701,1716693055552,-1380.94,0.0003178,5]
[327947702,1716693055563,-500.0,0.0003178,5]
[327947703,1716693055572,-1330.91,0.0003178,5]
[327947704,1716693055582,-500.0,0.0003178,5]
[327947705,1716693055592,-500.0,0.0003178,5]
[327947706,1716693055602,-530.28,0.0003178,5]
[327947707,1716693055612,-500.0,0.0003178,5]
[327947708,1716693055621,-150.0,0.0003178,5]
[327947709,1716693055631,-960.84,0.0003178,5]
[327947710,1716693055640,-696.58,0.0003178,5]
[327947711,1716693055650,-779.36,0.0003178,5]
[327947712,1716693055660,-1441.02,0.0003178,5]
[327947713,1716693055670,-500.0,0.0003178,5]
[327947714,1716693055680,-500.0,0.0003178,5]
[327947715,1716693055690,-531.01,0.0003178,5]
[327947716,1716693055699,-500.0,0.0003178,5]
[327947717,1716693055709,-500.0,0.0003178,5]
[327947718,1716693055720,-500.0,0.0003178,5]
[327947719,1716693055730,-973.39,0.0003178,5]
[327947720,1716693055740,-873.8,0.0003178,5]
[327947721,1716693055749,-500.0,0.0003178,5]
[327947722,1716693055759,-500.0,0.0003178,5]
[327947723,1716693055769,-500.0,0.0003178,5]
[327947724,1716693055779,-500.0,0.0003178,5]
[327947725,1716693055788,-151.0,0.0003178,7]
[327947726,1716693055798,-500.0,0.0003178,5]
[327947727,1716693055808,-591.1,0.0003178,5]
[327947728,1716693055817,-500.0,0.0003178,5]
[327947729,1716693055827,-500.0,0.0003178,5]
[327947730,1716693055838,-500.0,0.0003178,5]
[327947731,1716693055848,-151.0,0.0003178,7]
[327947732,1716693055858,-500.0,0.0003178,5]
[327947733,1716693055868,-1219.11,0.0003178,5]
[327947734,1716693055878,-500.0,0.0003178,5]
[327947735,1716693055888,-1311.74,0.0003178,5]
[327947736,1716693055897,-500.0,0.0003178,5]
[327947737,1716693055907,-500.0,0.0003178,5]
[327947738,1716693055917,-151.0,0.0003178,7]
[327947739,1716693055927,-980.08,0.0003178,5]
[327947740,1716693055937,-151.0,0.0003178,7]
[327947741,1716693055946,-500.0,0.0003178,5]
[327947742,1716693055956,-500.0,0.0003178,5]
[327947743,1716693055966,-676.51,0.0003178,5]
[327947744,1716693055976,-151.0,0.0003178,7]
[327947745,1716693055985,-577.91,0.0003178,5]
[327947746,1716693055995,-151.0,0.0003178,7]
[327947747,1716693056004,-500.0,0.0003178,5]
[327947748,1716693056015,-648.77,0.0003178,5]
[327947749,1716693056024,-500.0,0.0003178,5]
[327947750,1716693056035,-500.0,0.0003178,5]
[327947751,1716693056044,-500.0,0.0003178,5]
[327947752,1716693056054,-500.0,0.0003178,5]
[327947753,1716693056064,-500.0,0.0003178,5]
[327947754,1716693056074,-500.0,0.0003178,5]
[327947755,1716693056084,-500.0,0.0003178,5]
[327947756,1716693056098,-528.21,0.0003178,5]
[327947757,1716693056107,-500.0,0.0003178,5]
[327947758,1716693056119,-994.18,0.0003178,5]
[327947759,1716693056131,-1223.85,0.0003178,5]
[327947760,1716693056142,-500.0,0.0003178,5]
[327947761,1716693056151,-500.0,0.0003178,5]
[327947762,1716693056161,-500.0,0.0003178,5]
[327947763,1716693056174,-500.0,0.0003178,5]
[327947764,1716693056184,-500.0,0.0003178,5]
[327947765,1716693056193,-500.0,0.0003178,5]
[327947766,1716693056203,-500.0,0.0003178,5]
[327947767,1716693056212,-528.33,0.0003178,5]
[327947768,1716693056223,-1481.41,0.0003178,5]
[327947769,1716693056232,-500.0,0.0003178,5]
[327947770,1716693056242,-500.0,0.0003178,5]
[327947771,1716693056252,-500.0,0.0003178,5]
[327947772,1716693056262,-500.0,0.0003178,5]
[327947773,1716693056271,-500.0,0.0003178,5]
[327947774,1716693056281,-599.73,0.0003178,5]
[327947775,1716693056291,-500.0,0.0003178,5]
[327947776,1716693056302,-2508.83,0.0003178,5]
[327947777,1716693056312,-500.0,0.0003178,5]
[327947778,1716693056321,-500.0,0.0003178,5]
[327947779,1716693056331,-500.0,0.0003178,5]
[327947780,1716693056340,-500.0,0.0003178,5]
[327947781,1716693056350,-500.0,0.0003178,5]
[327947782,1716693056359,-500.0,0.0003178,5]
[327947783,1716693056369,-500.0,0.0003178,5]
[327947784,1716693056379,-500.0,0.0003178,5]
[327947785,1716693056388,-500.0,0.0003178,5]
[327947786,1716693056398,-500.0,0.0003178,5]
[327947787,1716693056408,-500.0,0.0003178,5]
[327947788,1716693056418,-647.82,0.0003178,5]
[327947789,1716693056427,-500.0,0.0003178,5]
[327947790,1716693056437,-578.91,0.0003178,5]
[327947791,1716693056446,-551.65,0.0003178,5]
[327947792,1716693056455,-500.0,0.0003178,5]
[327947793,1716693056465,-565.18956681,0.0003178,5]
[327947794,1716693056474,-500.0,0.0003178,5]
[327947795,1716693056484,-500.0,0.0003178,5]
[327947796,1716693056493,-500.0,0.0003178,5]
[327947797,1716693056503,-699.66,0.0003178,5]
[327947798,1716693056512,-500.0,0.0003178,5]
[327947799,1716693056522,-500.0,0.0003178,5]
[327947800,1716693056531,-522.2,0.0003178,5]
[327947801,1716693056540,-726.69,0.0003178,5]
[327947802,1716693056550,-151.0,0.0003178,7]
[327947803,1716693056559,-500.0,0.0003178,5]
[327947804,1716693056569,-500.0,0.0003178,5]
[327947805,1716693056578,-566.9,0.0003178,5]
[327947806,1716693056587,-500.0,0.0003178,5]
[327947807,1716693056597,-500.0,0.0003178,5]
[327947808,1716693056606,-151.0,0.0003178,7]
[327947809,1716693056616,-618.0,0.0003178,5]
[327947810,1716693056626,-500.0,0.0003178,5]
[327947811,1716693056635,-500.0,0.0003178,5]
[327947812,1716693056645,-1000.38,0.0003178,5]
[327947813,1716693056655,-500.0,0.0003178,5]
[327947814,1716693056664,-544.52,0.0003178,5]
[327947815,1716693056673,-500.0,0.0003178,5]
[327947816,1716693056683,-519.268359,0.0003178,5]
[327947817,1716693056692,-500.0,0.0003178,5]
[327947818,1716693056702,-1185.6,0.0003178,5]
[327947819,1716693056711,-151.0,0.0003178,7]
[327947820,1716693056721,-629.16,0.0003178,5]
[327947821,1716693056731,-500.0,0.0003178,5]
[327947822,1716693056740,-186.75168,0.0003178,7]
[327947823,1716693056750,-695.21,0.0003178,5]
[327947824,1716693056760,-500.0,0.0003178,5]
[327947825,1716693056770,-500.0,0.0003178,5]
[327947826,1716693056779,-801.82,0.0003178,5]
[327947827,1716693056789,-151.0,0.0003178,7]
[327947828,1716693056799,-500.0,0.0003178,5]
[327947829,1716693056810,-500.0,0.0003178,5]
[327947830,1716693056820,-582.79,0.0003178,5]
[327947831,1716693057083,-500.0,0.0003178,5]
[327947832,1716693057102,-500.0,0.0003178,5]
[327947833,1716693057112,-500.0,0.0003178,5]
[327947834,1716693057122,-500.0,0.0003178,5]
[327947835,1716693057131,-556.47,0.0003178,5]
[327947836,1716693057141,-500.0,0.0003178,5]
[327947837,1716693057150,-500.0,0.0003178,5]
[327947838,1716693057160,-714.6,0.0003178,5]
[327947839,1716693057172,-500.0,0.0003178,5]
[327947840,1716693057183,-151.0,0.0003178,7]
[327947841,1716693057192,-500.0,0.0003178,5]
[327947842,1716693057202,-500.0,0.0003178,5]
[327947843,1716693057211,-500.0,0.0003178,5]
[327947844,1716693057220,-500.0,0.0003178,5]
[327947845,1716693057230,-942.07,0.0003178,5]
[327947846,1716693057239,-500.0,0.0003178,5]
[327947847,1716693057249,-151.0,0.0003178,7]
[327947848,1716693057259,-500.0,0.0003178,5]
[327947849,1716693057270,-500.0,0.0003178,5]
[327947850,1716693057280,-990.3,0.0003178,5]
[327947851,1716693057291,-500.0,0.0003178,5]
[327947852,1716693057301,-1250.94,0.0003178,5]
[327947853,1716693057310,-500.0,0.0003178,5]
[327947854,1716693057319,-500.0,0.0003178,5]
[327947855,1716693057329,-500.0,0.0003178,5]
[327947856,1716693057338,-410.02053985,0.0003178,5]
[327947857,1716693057347,-500.0,0.0003178,5]
[327947858,1716693057357,-500.0,0.0003178,5]
[327947859,1716693057367,-500.0,0.0003178,5]
[327947860,1716693057376,-500.0,0.0003178,5]
[327947861,1716693057386,-872.32,0.0003178,5]
[327947862,1716693057395,-151.0,0.0003178,7]
[327947863,1716693057405,-151.0,0.0003178,7]
[327947864,1716693057414,-500.0,0.0003178,5]
[327947865,1716693057423,-500.0,0.0003178,5]
[327947866,1716693057432,-500.0,0.0003178,5]
[327947867,1716693057442,-500.0,0.0003178,5]
[327947868,1716693057452,-507.11,0.0003178,5]
[327947869,1716693057461,-500.0,0.0003178,5]
[327947870,1716693057471,-919.67,0.0003178,5]
[327947871,1716693057480,-504.54,0.0003178,5]
[327947872,1716693057490,-500.0,0.0003178,5]
[327947873,1716693057500,-500.0,0.0003178,5]
[327947874,1716693057509,-724.64,0.0003178,5]
[327947875,1716693057518,-500.0,0.0003178,5]
[327947876,1716693057527,-500.0,0.0003178,5]
[327947877,1716693057536,-500.0,0.0003178,5]
[327947878,1716693057546,-739.64,0.0003178,5]
[327947879,1716693057555,-500.0,0.0003178,5]
[327947880,1716693057565,-500.0,0.0003178,5]
[327947881,1716693057574,-500.0,0.0003178,5]
[327947882,1716693057584,-1109.94,0.0003178,5]
[327947883,1716693057594,-500.0,0.0003178,5]
[327947884,1716693057604,-500.0,0.0003178,5]
[327947885,1716693057614,-500.0,0.0003178,5]
[327947886,1716693057623,-500.0,0.0003178,5]
[327947887,1716693057632,-778.5,0.0003178,5]
[327947888,1716693057641,-306.46447608,0.0003178,5]
[327947889,1716693057651,-774.39,0.0003178,5]
[327947890,1716693057661,-625.55301892,0.0003178,8]
[327947891,1716693057670,-369.85332,0.0003178,5]
[327947892,1716693057680,-845.94,0.0003178,5]
[327947893,1716693057689,-500.0,0.0003178,5]
[327947894,1716693057699,-500.0,0.0003178,5]
[327947895,1716693057708,-675.57,0.0003178,5]
[327947896,1716693057717,-500.0,0.0003178,5]
[327947897,1716693057726,-500.0,0.0003178,5]
[327947898,1716693057735,-599.07,0.0003178,5]
[327947899,1716693057745,-500.0,0.0003178,5]
[327947900,1716693057755,-500.0,0.0003178,5]
[327947901,1716693057764,-151.0,0.0003178,7]
[327947902,1716693057774,-500.0,0.0003178,5]
[327947903,1716693057784,-151.0,0.0003178,7]
[327947904,1716693057794,-151.0,0.0003178,7]
[327947905,1716693057804,-500.0,0.0003178,5]
[327947906,1716693057813,-500.0,0.0003178,5]
[327947907,1716693057823,-500.0,0.0003178,5]
[327947908,1716693057832,-822.89,0.0003178,5]
[327947909,1716693057842,-766.17,0.0003178,5]
[327947910,1716693057851,-500.0,0.0003178,5]
[327947911,1716693057861,-500.0,0.0003178,5]
[327947912,1716693057871,-1096.3,0.0003178,5]
[327947913,1716693057880,-500.0,0.0003178,5]
[327947914,1716693057889,-500.0,0.0003178,5]
[327947915,1716693057899,-151.0,0.0003178,7]
[327947916,1716693057908,-500.0,0.0003178,5]
[327947917,1716693057917,-151.0,0.0003178,7]
[327947918,1716693057928,-607.33,0.0003178,5]
[327947919,1716693057937,-500.0,0.0003178,5]
[327947920,1716693057948,-500.0,0.0003178,5]
[327947921,1716693057957,-500.0,0.0003178,5]
[327947922,1716693057968,-500.0,0.0003178,5]
[327947923,1716693057977,-500.0,0.0003178,5]
[327947924,1716693057987,-500.0,0.0003178,5]
[327947925,1716693057996,-500.0,0.0003178,5]
[327947926,1716693058006,-500.0,0.0003178,5]
[327947927,1716693058015,-500.0,0.0003178,5]
[327947928,1716693058026,-544.05321967,0.0003178,5]
[327947929,1716693058037,-500.0,0.0003178,5]
[327947930,1716693058047,-500.0,0.0003178,5]
[327947931,1716693058056,-500.0,0.0003178,5]
[327947932,1716693058066,-500.0,0.0003178,5]
[327947933,1716693058075,-500.0,0.0003178,5]
[327947934,1716693058086,-500.0,0.0003178,5]
[327947935,1716693058098,-331.36,0.0003178,5]
[327947936,1716693058109,-924.06,0.0003178,5]
[327947937,1716693058121,-901.56,0.0003178,5]
[327947938,1716693058131,-618.85,0.0003178,5]
[327947939,1716693058140,-500.0,0.0003178,5]
[327947940,1716693058150,-151.0,0.0003178,7]
[327947941,1716693058159,-600.81,0.0003178,5]
[327947942,1716693058171,-243.32522009,0.0003178,5]
[327947943,1716693058181,-500.0,0.0003178,5]
[327947944,1716693058191,-151.0,0.0003178,7]
[327947945,1716693058200,-1904.41,0.0003178,5]
[327947946,1716693058209,-1446.11,0.0003178,2]
[327947947,1716693058219,-1797.85,0.0003178,5]
[327947948,1716693058228,-500.0,0.0003178,5]
[327947949,1716693058237,-151.0,0.0003178,7]
[327947950,1716693058247,-695.75,0.0003178,5]
[327947951,1716693058256,-500.0,0.0003178,5]
[327947952,1716693058265,-605.4,0.0003178,5]
[327947953,1716693058275,-500.0,0.0003178,5]
[327947954,1716693058284,-500.0,0.0003178,5]
[327947955,1716693058294,-500.0,0.0003178,5]
[327947956,1716693058303,-500.0,0.0003178,5]
[327947957,1716693058313,-1288.95,0.0003178,5]
[327947958,1716693058322,-500.0,0.0003178,5]
[327947959,1716693058333,-3780.62,0.0003178,5]
[327947960,1716693058343,-500.0,0.0003178,5]
[327947961,1716693058352,-191.123589,0.0003178,7]
[327947962,1716693058362,-1010.93,0.0003178,5]
[327947963,1716693058373,-500.0,0.0003178,5]
[327947964,1716693058383,-500.0,0.0003178,5]
[327947965,1716693058392,-500.0,0.0003178,5]
[327947966,1716693058402,-1026.59,0.0003178,5]
[327947967,1716693058412,-500.0,0.0003178,5]
[327947968,1716693058422,-500.0,0.0003178,5]
[327947969,1716693058432,-276.60112661,0.0003178,5]
[327947970,1716693058441,-500.0,0.0003178,5]
[327947971,1716693058450,-500.0,0.0003178,5]
[327947972,1716693058460,-500.0,0.0003178,5]
[327947973,1716693058470,-500.0,0.0003178,5]
[327947974,1716693058479,-1555.97,0.0003178,5]
[327947975,1716693058489,-1204.3,0.0003178,5]
[327947976,1716693058498,-500.0,0.0003178,5]
[327947977,1716693058508,-571.27,0.0003178,5]
[327947978,1716693058517,-500.0,0.0003178,5]
[327947979,1716693058526,-1861.31,0.0003178,5]
[327947980,1716693058535,-500.0,0.0003178,5]
[327947981,1716693058545,-500.0,0.0003178,5]
[327947982,1716693058554,-985.4,0.0003178,5]
[327947983,1716693058563,-151.0,0.0003178,7]
[327947984,1716693058573,-500.0,0.0003178,5]
[327947985,1716693058582,-151.0,0.0003178,7]
[327947986,1716693058591,-1153.3,0.0003178,5]
[327947987,1716693058600,-560.78,0.0003178,5]
[327947988,1716693058609,-500.0,0.0003178,5]
[327947989,1716693058619,-151.0,0.0003178,7]
[327947990,1716693058628,-500.0,0.0003178,5]
[327947991,1716693058638,-670.34,0.0003178,5]
[327947992,1716693058647,-151.0,0.0003178,7]
[327947993,1716693058656,-500.0,0.0003178,5]
[327947994,1716693058666,-533.8,0.0003178,5]
[327947995,1716693058675,-500.0,0.0003178,5]
[327947996,1716693058685,-500.0,0.0003178,5]
[327947997,1716693058694,-656.01,0.0003178,5]
[327947998,1716693058704,-500.0,0.0003178,5]
[327947999,1716693058714,-1918.64,0.0003178,5]
[327948000,1716693058723,-436.2526768,0.0003178,5]
[327948001,1716693058732,-500.0,0.0003178,5]
[327948002,1716693058741,-948.72,0.0003178,5]
[327948003,1716693058751,-18818.26,0.0003178,5]
[327948004,1716693058760,-864.0,0.0003178,5]
[327948005,1716693058769,-500.0,0.0003178,5]
[327948006,1716693058779,-500.0,0.0003178,5]
[327948007,1716693058788,-500.0,0.0003178,5]
[327948008,1716693058798,-500.0,0.0003178,5]
[327948009,1716693058807,-500.0,0.0003178,5]
[327948010,1716693058817,-500.0,0.0003178,5]
[327948011,1716693058827,-500.0,0.0003178,5]
[327948012,1716693058836,-500.0,0.0003178,5]
[327948013,1716693058846,-500.0,0.0003178,5]
[327948014,1716693058855,-500.0,0.0003178,5]
[327948015,1716693058865,-713.17,0.0003178,5]
[327948016,1716693058875,-1451.32,0.0003178,5]
[327948017,1716693058884,-500.0,0.0003178,5]
[327948018,1716693058893,-722.33,0.0003178,5]
[327948019,1716693058903,-591.77,0.0003178,5]
[327948020,1716693058913,-1397.21,0.0003178,5]
[327948021,1716693058922,-500.0,0.0003178,5]
[327948022,1716693058933,-500.0,0.0003178,5]
[327948023,1716693058942,-500.0,0.0003178,5]
[327948024,1716693058952,-500.0,0.0003178,5]
[327948025,1716693058961,-500.0,0.0003178,5]
[327948026,1716693058970,-2577.64,0.0003178,5]
[327948027,1716693058980,-151.0,0.0003178,7]
[327948028,1716693058991,-151.0,0.0003178,7]
[327948029,1716693059000,-500.0,0.0003178,5]
[327948030,1716693059010,-901.81,0.0003178,5]
[327948031,1716693059019,-1066.17,0.0003178,2]
[327948032,1716693059029,-533.69,0.0003178,5]
[327948033,1716693059038,-500.0,0.0003178,5]
[327948034,1716693059047,-500.0,0.0003178,5]
[327948035,1716693059057,-151.0,0.0003178,7]
[327948036,1716693059067,-151.0,0.0003178,7]
[327948037,1716693059077,-527.7,0.0003178,5]
[327948038,1716693059088,-500.0,0.0003178,5]
[327948039,1716693059100,-748.29,0.0003178,5]
[327948040,1716693059109,-500.0,0.0003178,5]
[327948041,1716693059120,-500.0,0.0003178,5]
[327948042,1716693059131,-2028.31,0.0003178,5]
[327948043,1716693059141,-151.0,0.0003178,7]
[327948044,1716693059151,-500.0,0.0003178,5]
[327948045,1716693059162,-563.62,0.0003178,5]
[327948046,1716693059174,-500.0,0.0003178,5]
[327948047,1716693059184,-500.0,0.0003178,5]
[327948048,1716693059194,-500.0,0.0003178,5]
[327948049,1716693059204,-2050.68,0.0003178,5]
[327948050,1716693059213,-771.92,0.0003178,5]
[327948051,1716693059223,-500.0,0.0003178,5]
[327948052,1716693059233,-500.0,0.0003178,5]
[327948053,1716693059243,-1223.78,0.0003178,5]
[327948054,1716693059253,-769.48,0.0003178,5]
[327948055,1716693059262,-517.88,0.0003178,5]
[327948056,1716693059271,-3806.09,0.0003178,5]
[327948057,1716693059281,-500.0,0.0003178,5]
[327948058,1716693059291,-500.0,0.0003178,5]
[327948059,1716693059300,-500.0,0.0003178,5]
[327948060,1716693059310,-818.02,0.0003178,5]
[327948061,1716693059320,-500.0,0.0003178,5]
[327948062,1716693059329,-1552.52,0.0003178,5]
[327948063,1716693059338,-500.0,0.0003178,5]
[327948064,1716693059348,-947.49,0.0003178,5]
[327948065,1716693059358,-151.0,0.0003178,7]
[327948066,1716693059368,-151.0,0.0003178,7]
[327948067,1716693059378,-867.41,0.0003178,5]
[327948068,1716693059388,-500.0,0.0003178,5]
[327948069,1716693059397,-500.0,0.0003178,5]
[327948070,1716693059410,-881.98,0.0003178,5]
[327948071,1716693059495,-642.63,0.0003178,5]
[327948072,1716693059506,-500.0,0.0003178,5]
[327948073,1716693059516,-500.0,0.0003178,5]
[327948074,1716693059526,-823.79,0.0003178,5]
[327948075,1716693059536,-151.0,0.0003178,7]
[327948076,1716693059545,-151.0,0.0003178,7]
[327948077,1716693059555,-151.0,0.0003178,7]
[327948078,1716693059564,-500.0,0.0003178,5]
[327948079,1716693059573,-2542.71,0.0003178,5]
[327948080,1716693059583,-1248.62,0.0003178,5]
[327948081,1716693059592,-500.0,0.0003178,5]
[327948082,1716693059601,-151.0,0.0003178,7]
[327948083,1716693059610,-717.18,0.0003178,5]
[327948084,1716693059620,-2435.9,0.0003178,5]
[327948085,1716693059630,-500.0,0.0003178,5]
[327948086,1716693059639,-151.0,0.0003178,7]
[327948087,1716693059649,-500.0,0.0003178,5]
[327948088,1716693059659,-1538.18,0.0003178,5]
[327948089,1716693059668,-500.0,0.0003178,5]
[327948090,1716693059678,-1115.7,0.0003178,5]
[327948091,1716693059687,-542.18,0.0003178,5]
[327948092,1716693059697,-500.0,0.0003178,5]
[327948093,1716693059706,-203.17601654,0.0003178,5]
[327948094,1716693059716,-1107.33,0.0003178,5]
[327948095,1716693059726,-852.44,0.0003178,5]
[327948096,1716693059735,-500.0,0.0003178,5]
[327948097,1716693059745,-500.0,0.0003178,5]
[327948098,1716693059754,-500.0,0.0003178,5]
[327948099,1716693059763,-249.85034078,0.0003178,5]